bitfinex/quotes_BTCUSD_20250809
["timestamp","ask_amount","ask_price","bid_price","bid_amount"]
[1754735956991,0.00114128,117590.0,117580.0,1.50875822]
[1754735957941,0.00114128,117590.0,117580.0,2.07515128]
[1754735958159,0.00114128,117590.0,117580.0,2.0970316]
[1754735958377,0.00114128,117590.0,117580.0,2.3220316]
[1754735958591,0.00114128,117590.0,117580.0,2.3719616]
[1754735958799,0.00114128,117590.0,117580.0,2.35227826]
[1754735959882,0.00014128,117590.0,117580.0,2.34927826]
[1754735960330,0.00014128,117590.0,117580.0,2.44374826]
[1754735960331,0.00114128,117590.0,117580.0,2.44374826]
[1754735961845,0.00114128,117590.0,117580.0,1.90427687]
[1754735962055,0.00114128,117590.0,117580.0,1.72275687]
[1754735962264,0.00114128,117590.0,117580.0,1.71775687]
[1754735962470,0.00114128,117590.0,117580.0,1.34385077]
[1754735962683,0.00114128,117590.0,117580.0,1.69275687]
[1754735962890,0.00114128,117590.0,117580.0,1.34385077]
[1754735963098,0.00114128,117590.0,117580.0,1.42483524]
[1754735963532,0.00114128,117590.0,117580.0,1.77374134]
[1754735963783,0.00114128,117590.0,117580.0,1.77866134]
[1754735964006,0.00114128,117590.0,117580.0,1.80366134]
[1754735964212,0.00114128,117590.0,117580.0,2.06946134]
[1754735965049,0.00114128,117590.0,117580.0,2.04446134]
[1754735965231,0.00114128,117590.0,117580.0,2.06946134]
[1754735965686,0.00114128,117590.0,117580.0,1.80366134]
[1754735966591,0.00114128,117590.0,117580.0,1.69767687]
[1754735967024,0.00114128,117590.0,117580.0,1.72319987]
[1754735967233,0.00114128,117590.0,117580.0,1.74819987]
[1754735967496,0.00114128,117590.0,117580.0,2.15475126]
[1754735967682,0.07245762,117640.0,117630.0,0.74]
[1754735967934,0.0747394,117640.0,117630.0,1.13164676]
[1754735968146,0.0747394,117640.0,117630.0,1.53819815]
[1754735968328,0.0747394,117640.0,117630.0,1.12952676]
[1754735968487,0.2447496,117640.0,117630.0,1.12952676]
[1754735969070,0.0757394,117640.0,117630.0,1.12952676]
[1754735969855,0.0706194,117640.0,117630.0,1.12952676]
[1754735970293,0.0757394,117640.0,117630.0,1.12952676]
[1754735970709,0.0716194,117640.0,117630.0,1.12952676]
[1754735970923,0.00214178,117640.0,117630.0,1.12952676]
[1754735971273,0.17215198,117640.0,117630.0,1.12952676]
[1754735971901,0.17215198,117640.0,117630.0,0.55950211]
[1754735972112,0.17215198,117640.0,117630.0,0.75950211]
[1754735972306,0.2416296,117640.0,117630.0,0.55950211]
[1754735975226,0.2416296,117640.0,117630.0,0.21950211]
[1754735976378,0.17215198,117640.0,117630.0,0.21950211]
[1754735978373,0.19767198,117640.0,117630.0,0.21950211]
[1754735983149,0.19767198,117640.0,117630.0,0.22813128]
[1754735984366,0.19767198,117640.0,117630.0,0.21950211]
[1754735995392,0.19767198,117640.0,117630.0,0.38952676]
[1754735995593,0.19767198,117640.0,117630.0,0.80589688]
[1754735996457,0.19767198,117640.0,117630.0,0.38952676]
[1754735996661,0.17215198,117640.0,117630.0,0.38952676]
[1754735997893,0.17215198,117640.0,117630.0,0.80589688]
[1754735998328,0.17215198,117640.0,117630.0,0.41950211]
[1754736000797,0.17215198,117640.0,117630.0,0.28686211]
[1754736001019,0.17215198,117640.0,117630.0,0.41946211]
[1754736002454,0.17215198,117640.0,117630.0,0.21942211]
[1754736004242,0.17215198,117640.0,117630.0,0.13256]
[1754736005992,0.17215198,117640.0,117630.0,0.21942211]
[1754736006508,0.17215198,117640.0,117630.0,0.63579223]
[1754736006722,0.17215198,117640.0,117630.0,0.80581688]
[1754736006927,0.17215198,117640.0,117630.0,1.00581688]
[1754736007131,0.17215198,117640.0,117630.0,0.83579223]
[1754736007577,0.17215198,117640.0,117630.0,1.00581688]
[1754736008201,0.17215198,117640.0,117630.0,0.83579223]
[1754736009499,0.17215198,117640.0,117630.0,1.00581688]
[1754736010885,0.17215198,117640.0,117630.0,1.11188328]
[1754736014280,0.17215198,117640.0,117630.0,0.94185863]
[1754736017027,0.17215198,117640.0,117630.0,1.11188328]
[1754736020208,0.17215198,117640.0,117630.0,0.69551316]
[1754736020410,0.17215198,117640.0,117630.0,1.11188328]
[1754736032984,0.17215198,117640.0,117630.0,0.94185863]
[1754736033519,0.17215198,117640.0,117630.0,0.52548851]
[1754736034738,0.17215198,117640.0,117630.0,0.32540851]
[1754736034866,0.17215198,117640.0,117630.0,0.21934211]
[1754736035481,0.17215198,117640.0,117630.0,0.08686211]
[1754736035756,0.17215198,117640.0,117630.0,0.21930211]
[1754736036213,0.17539198,117640.0,117630.0,0.21930211]
[1754736037958,0.20091298,117640.0,117630.0,0.21930211]
[1754736044436,0.19767298,117640.0,117630.0,0.21930211]
[1754736044645,0.20091298,117640.0,117630.0,0.21930211]
[1754736047002,0.17215198,117640.0,117630.0,0.21930211]
[1754736053346,0.17215198,117640.0,117630.0,0.63860223]
[1754736054794,0.17215198,117640.0,117630.0,0.80862688]
[1754736055065,0.17215198,117640.0,117630.0,0.39225676]
[1754736055260,0.17215198,117640.0,117630.0,0.80862688]
[1754736055794,0.17215198,117640.0,117630.0,0.81078688]
[1754736057158,0.17215198,117640.0,117630.0,0.64076223]
[1754736059330,0.17215198,117640.0,117630.0,0.22439211]
[1754736059518,0.17215198,117640.0,117630.0,0.64076223]
[1754736060632,0.17215198,117640.0,117630.0,0.81078688]
[1754736064292,0.17215198,117640.0,117630.0,0.39441676]
[1754736064440,0.17215198,117640.0,117630.0,0.81078688]
[1754736067571,0.17215198,117640.0,117630.0,1.07658688]
[1754736068180,0.17215198,117640.0,117630.0,1.07365688]
[1754736068341,0.17215198,117640.0,117630.0,0.90363223]
[1754736068540,0.17006802,117600.0,117590.0,0.22412086]
[1754736068749,0.52487875,117590.0,117580.0,0.0004]
[1754736068963,0.52487875,117590.0,117570.0,0.24483429]
[1754736068964,0.51009695,117580.0,117570.0,0.24483429]
[1754736069169,0.52489321,117580.0,117570.0,0.0004]
[1754736069380,0.52756044,117570.0,117560.0,0.00046]
[1754736069700,0.52756044,117570.0,117560.0,1e-08]
[1754736069896,0.52756044,117570.0,117560.0,0.00047384]
[1754736070104,0.51011142,117570.0,117560.0,0.00047384]
[1754736070507,0.62251553,117570.0,117560.0,0.00047384]
[1754736070976,0.62251553,117570.0,117560.0,0.00047383]
[1754736071176,0.63051553,117570.0,117560.0,0.00147383]
[1754736072109,0.63951553,117570.0,117560.0,0.00147383]
[1754736072497,0.55265342,117570.0,117560.0,0.00147383]
[1754736072905,0.21265342,117570.0,117560.0,0.01383757]
[1754736073109,0.21265342,117570.0,117560.0,0.01676757]
[1754736073844,0.20465342,117570.0,117560.0,0.01067757]
[1754736074023,0.19965342,117570.0,117560.0,0.01676757]
[1754736075621,0.20565342,117570.0,117560.0,0.01676757]
[1754736076291,0.20565342,117570.0,117560.0,0.15896757]
[1754736076748,0.17012589,117560.0,117510.0,0.1504]
[1754736076961,0.17012589,117560.0,117500.0,0.04329]
[1754736076962,0.17019828,117510.0,117500.0,0.01536]
[1754736077164,0.17019828,117510.0,117470.0,0.40774]
[1754736077165,0.17024174,117480.0,117470.0,0.40774]
[1754736077337,0.17024174,117480.0,117470.0,0.75246]
[1754736077552,0.17024174,117480.0,117470.0,0.75260128]
[1754736077762,0.17024174,117480.0,117470.0,0.83946339]
[1754736080220,0.17024174,117480.0,117470.0,0.69974339]
[1754736080423,0.23971936,117480.0,117470.0,0.00554128]
[1754736080625,0.23971936,117480.0,117470.0,0.14986128]
[1754736081623,0.23971936,117480.0,117470.0,0.4128028]
[1754736081984,0.23971936,117480.0,117470.0,0.5570428]
[1754736082186,0.23971936,117480.0,117470.0,0.14978128]
[1754736082357,0.24271936,117480.0,117470.0,0.14578128]
[1754736082598,0.17424174,117480.0,117470.0,0.14578128]
[1754736082988,0.17424174,117480.0,117470.0,0.5530428]
[1754736083188,0.17424174,117480.0,117470.0,0.5528828]
[1754736083354,0.17424174,117480.0,117470.0,0.5561028]
[1754736083776,0.17424174,117480.0,117470.0,0.14884128]
[1754736084149,0.17424174,117480.0,117470.0,0.5561028]
[1754736084570,0.17424174,117480.0,117470.0,0.14884128]
[1754736084804,0.17424174,117480.0,117470.0,0.5561028]
[1754736085668,0.17424174,117480.0,117470.0,0.5581428]
[1754736087972,0.17424174,117480.0,117470.0,0.4140628]
[1754736088373,0.17424174,117480.0,117470.0,0.5574628]
[1754736089443,0.17424174,117480.0,117470.0,0.00680128]
[1754736089700,0.17424174,117480.0,117470.0,0.5574628]
[1754736090832,0.17424174,117480.0,117470.0,1.21458114]
[1754736091073,0.17424174,117480.0,117470.0,1.21426114]
[1754736092192,0.004,117480.0,117470.0,1.23802114]
[1754736092761,0.17424174,117480.0,117470.0,1.23802114]
[1754736094064,0.17424174,117480.0,117470.0,1.21426114]
[1754736094258,0.004,117480.0,117470.0,1.23802114]
[1754736094694,0.17424174,117480.0,117470.0,1.23802114]
[1754736097344,0.004,117480.0,117470.0,1.23802114]
[1754736097828,0.02575397,117520.0,117490.0,0.17022725]
[1754736097974,0.30133486,117540.0,117520.0,0.17017888]
[1754736098173,0.35298106,117540.0,117530.0,0.3468]
[1754736098359,0.33025564,117540.0,117530.0,0.3468]
[1754736098561,0.32261508,117540.0,117530.0,0.3468]
[1754736099366,0.32261508,117540.0,117530.0,0.34694128]
[1754736099871,0.32261508,117540.0,117530.0,0.34898128]
[1754736100117,0.29981936,117540.0,117530.0,0.35220128]
[1754736100325,0.27427336,117540.0,117530.0,0.35220128]
[1754736100531,0.22759146,117540.0,117530.0,0.52237059]
[1754736100829,0.0271002,117540.0,117530.0,0.92963211]
[1754736101177,0.01920082,117540.0,117530.0,0.52237059]
[1754736101378,0.18935566,117540.0,117530.0,0.52205059]
[1754736101584,0.02712948,117540.0,117530.0,0.52205059]
[1754736101782,0.02712948,117540.0,117530.0,1.0089127]
[1754736101986,0.02612948,117540.0,117530.0,1.0089127]
[1754736102178,0.02712948,117540.0,117530.0,1.0089127]
[1754736102615,0.00892866,117540.0,117530.0,1.0089127]
[1754736102856,0.00892866,117540.0,117530.0,1.41617422]
[1754736103168,0.00892866,117540.0,117530.0,1.41717422]
[1754736103577,0.00792866,117540.0,117530.0,1.41617422]
[1754736103747,0.20428168,117560.0,117540.0,0.17014743]
[1754736104031,0.23048996,117560.0,117550.0,0.1451]
[1754736104231,0.23048996,117560.0,117550.0,0.14714]
[1754736104662,0.23048996,117560.0,117550.0,0.14188]
[1754736106323,0.23048996,117560.0,117550.0,0.1451]
[1754736106547,0.23048996,117560.0,117550.0,0.14714]
[1754736106761,0.52763281,117520.0,117510.0,0.02376]
[1754736107043,0.61979492,117520.0,117510.0,0.16724]
[1754736107279,0.17231379,117520.0,117510.0,0.57450152]
[1754736107548,0.17231379,117520.0,117510.0,0.16724]
[1754736108005,0.17548379,117520.0,117510.0,0.16724]
[1754736108253,0.17762545,117520.0,117510.0,0.14348]
[1754736108468,0.20317545,117520.0,117510.0,0.14348]
[1754736108727,0.20317545,117520.0,117490.0,0.2]
[1754736108728,0.17021276,117500.0,117490.0,0.2]
[1754736108956,0.17234276,117500.0,117490.0,0.63648211]
[1754736109178,0.17234276,117500.0,117490.0,0.34748]
[1754736109411,0.17234276,117500.0,117490.0,0.34954]
[1754736109650,0.17021276,117500.0,117490.0,0.61284736]
[1754736109880,0.17021064,117510.0,117490.0,1.24356888]
[1754736110129,0.17021064,117510.0,117500.0,0.00314]
[1754736110368,0.19487545,117520.0,117500.0,0.58267428]
[1754736110611,0.16932545,117520.0,117510.0,0.40026039]
[1754736110853,0.17032545,117520.0,117510.0,0.40546039]
[1754736111101,0.17032545,117520.0,117510.0,0.23212211]
[1754736111409,0.17245545,117520.0,117510.0,0.1432]
[1754736111746,0.17345545,117520.0,117510.0,0.14526]
[1754736112449,0.17345545,117520.0,117510.0,0.1432]
[1754736113399,0.17019828,117510.0,117500.0,0.19681209]
[1754736113631,0.17132545,117520.0,117500.0,0.4285742]
[1754736113868,0.17132545,117520.0,117500.0,0.2825942]
[1754736114105,0.17132545,117520.0,117510.0,0.14598]
[1754736114339,0.17132545,117520.0,117510.0,0.14804]
[1754736114541,0.17032545,117520.0,117510.0,0.14804]
[1754736114726,0.17032545,117520.0,117510.0,0.0052]
[1754736114866,0.17032545,117520.0,117510.0,0.14788]
[1754736115510,0.17032545,117520.0,117510.0,0.31807828]
[1754736115938,0.00014166,117520.0,117510.0,0.31807828]
[1754736116462,0.17032545,117520.0,117510.0,0.31807828]
[1754736116802,0.00014166,117520.0,117510.0,0.31807828]
[1754736117016,0.00014166,117520.0,117510.0,0.7253398]
[1754736117228,0.00014166,117520.0,117510.0,1.01220191]
[1754736117368,0.00014166,117520.0,117510.0,1.03566191]
[1754736117577,0.00014166,117520.0,117510.0,1.03666191]
[1754736117777,0.00014166,117520.0,117510.0,1.03566191]
[1754736117991,0.00014166,117520.0,117510.0,1.03666191]
[1754736119168,0.00014166,117520.0,117510.0,0.62940039]
[1754736119374,0.00014166,117520.0,117510.0,1.03666191]
[1754736119550,0.00014166,117520.0,117510.0,1.03966191]
[1754736119747,0.00014166,117520.0,117510.0,0.63240039]
[1754736119974,0.00014166,117520.0,117510.0,1.03966191]
[1754736120886,0.00014166,117520.0,117510.0,1.23966191]
[1754736121769,0.00014166,117520.0,117510.0,1.59711093]
[1754736121978,8.21e-06,117520.0,117510.0,1.59711093]
[1754736122585,8.21e-06,117520.0,117510.0,1.59611093]
[1754736122863,8.21e-06,117520.0,117510.0,1.59311093]
[1754736123120,8.21e-06,117520.0,117510.0,1.59811093]
[1754736123543,8.21e-06,117520.0,117510.0,1.80151093]
[1754736124504,8.21e-06,117520.0,117510.0,1.80351093]
[1754736124900,8.21e-06,117520.0,117510.0,1.80151093]
[1754736125306,8.21e-06,117520.0,117510.0,1.80351093]
[1754736125925,8.21e-06,117520.0,117510.0,1.82851093]
[1754736126138,8.21e-06,117520.0,117510.0,1.80351093]
[1754736126339,8.21e-06,117520.0,117510.0,1.82851093]
[1754736126588,8.21e-06,117520.0,117510.0,1.27936941]
[1754736126791,8.21e-06,117520.0,117510.0,1.82811093]
[1754736128274,8.21e-06,117520.0,117510.0,1.85337763]
[1754736128474,8.21e-06,117520.0,117510.0,1.82837763]
[1754736128685,8.21e-06,117520.0,117510.0,1.85337763]
[1754736129343,0.17863323,117560.0,117550.0,0.17014036]
[1754736129344,0.17012617,117560.0,117550.0,0.17014036]
[1754736129548,0.17556801,117560.0,117550.0,0.39808247]
[1754736130863,0.17556801,117560.0,117550.0,0.39908247]
[1754736131072,0.00544184,117560.0,117550.0,0.39908247]
[1754736134297,0.17556773,117560.0,117550.0,0.39908247]
[1754736134496,0.00544184,117560.0,117550.0,0.39908247]
[1754736135293,0.00544184,117560.0,117550.0,0.80634399]
[1754736135493,0.00544184,117560.0,117550.0,0.81046411]
[1754736135698,0.17556773,117560.0,117550.0,0.40320259]
[1754736136294,0.00544184,117560.0,117550.0,0.40320259]
[1754736136502,0.17556773,117560.0,117550.0,0.40320259]
[1754736137357,0.17556773,117560.0,117550.0,0.25800247]
[1754736137555,0.17556773,117560.0,117550.0,0.39824247]
[1754736139598,0.17556773,117560.0,117550.0,0.40245703]
[1754736140929,0.17556773,117560.0,117550.0,0.39824247]
[1754736141137,0.17239773,117560.0,117550.0,0.60240247]
[1754736141343,0.17564773,117560.0,117550.0,0.60240247]
[1754736146427,0.17239773,117560.0,117550.0,0.60240247]
[1754736146739,0.17239773,117560.0,117550.0,1.01927482]
[1754736147340,0.17239773,117560.0,117550.0,0.87903482]
[1754736147539,0.17239773,117560.0,117550.0,1.01843482]
[1754736148542,0.17564773,117560.0,117550.0,1.01843482]
[1754736148967,0.17239773,117560.0,117550.0,1.01843482]
[1754736149429,0.16218768,117560.0,117550.0,1.01843482]
[1754736150000,0.16218768,117560.0,117550.0,1.02353482]
[1754736150774,0.16218768,117560.0,117550.0,0.60666247]
[1754736150977,0.16218768,117560.0,117550.0,1.02353482]
[1754736153839,0.16218768,117560.0,117550.0,0.85339446]
[1754736157043,0.16218768,117560.0,117550.0,0.43652211]
[1754736157266,0.16218768,117560.0,117550.0,0.85339446]
[1754736158535,0.16218768,117560.0,117550.0,1.02353482]
[1754736159472,0.16218768,117560.0,117550.0,0.60666247]
[1754736159675,0.16218768,117560.0,117550.0,1.02353482]
[1754736160701,0.17019157,117570.0,117550.0,1.02353482]
[1754736160865,0.17019157,117570.0,117560.0,0.55503235]
[1754736161072,0.17217157,117570.0,117560.0,0.55503235]
[1754736161868,0.17019157,117570.0,117560.0,0.55997235]
[1754736162071,0.17219157,117570.0,117560.0,0.73009824]
[1754736163885,0.17319157,117570.0,117560.0,0.73009824]
[1754736164220,0.17311142,117570.0,117560.0,0.73009824]
[1754736164586,0.003,117570.0,117560.0,0.73009824]
[1754736164851,0.003,117570.0,117560.0,1.4338327]
[1754736165676,0.002,117570.0,117560.0,1.4338327]
[1754736165848,0.002,117570.0,117560.0,1.4581327]
[1754736166383,0.17019222,117580.0,117560.0,1.01154035]
[1754736166554,0.17019222,117580.0,117570.0,0.55455235]
[1754736166755,0.17217222,117580.0,117570.0,0.55455235]
[1754736167205,0.17217222,117580.0,117570.0,0.13768]
[1754736167400,0.17217222,117580.0,117570.0,0.55980235]
[1754736167736,0.17217222,117580.0,117570.0,0.14293]
[1754736167939,0.17217222,117580.0,117570.0,0.55980235]
[1754736168776,0.17217222,117580.0,117570.0,0.14293]
[1754736169082,0.17217222,117580.0,117570.0,0.55980235]
[1754736170139,0.17317222,117580.0,117570.0,0.55980235]
[1754736170730,0.17517222,117580.0,117570.0,0.14293]
[1754736170905,0.17517222,117580.0,117570.0,0.55980235]
[1754736172623,0.17319222,117580.0,117570.0,0.55980235]
[1754736172771,0.17319222,117580.0,117570.0,0.72991377]
[1754736174693,0.17319222,117580.0,117570.0,0.31304142]
[1754736174919,0.17319222,117580.0,117570.0,0.72991377]
[1754736178291,0.17319222,117580.0,117570.0,0.31304142]
[1754736178578,0.17319222,117580.0,117570.0,0.72991377]
[1754736179439,0.17319222,117580.0,117570.0,0.14193]
[1754736179673,0.17319222,117580.0,117570.0,0.72891377]
[1754736181135,0.17319222,117580.0,117570.0,0.55880235]
[1754736181500,0.17319222,117580.0,117570.0,0.72891377]
[1754736182127,0.17319222,117580.0,117570.0,0.31204142]
[1754736182323,0.17319222,117580.0,117570.0,0.72891377]
[1754736183780,0.17319222,117580.0,117570.0,0.55880235]
[1754736184147,0.17319222,117580.0,117570.0,0.42212235]
[1754736184343,0.17319222,117580.0,117570.0,0.55836235]
[1754736185183,0.17319222,117580.0,117570.0,0.72847377]
[1754736186266,0.17319222,117580.0,117570.0,0.55836235]
[1754736187633,0.17319222,117580.0,117570.0,0.14149]
[1754736187834,0.17319222,117580.0,117570.0,0.55836235]
[1754736188352,0.17319222,117580.0,117570.0,0.72847377]
[1754736189149,0.003,117580.0,117570.0,1.15533588]
[1754736189349,0.003,117580.0,117570.0,1.17815588]
[1754736190286,0.17866458,117600.0,117580.0,0.17008425]
[1754736190490,0.17913728,117600.0,117590.0,0.14113]
[1754736191495,0.18111728,117600.0,117590.0,0.14113]
[1754736192646,0.18211728,117600.0,117590.0,0.14113]
[1754736192863,0.18411728,117600.0,117590.0,0.14113]
[1754736194315,0.18411728,117600.0,117590.0,0.31121249]
[1754736199214,0.0034727,117600.0,117590.0,0.72808484]
[1754736200589,0.17354072,117600.0,117590.0,0.72808484]
[1754736200786,0.17354072,117600.0,117590.0,0.31121249]
[1754736206053,0.17354072,117600.0,117590.0,0.72808484]
[1754736207487,0.17354072,117600.0,117590.0,0.31121249]
[1754736211973,0.17354072,117600.0,117590.0,0.72808484]
[1754736212652,0.17008249,117590.0,117580.0,0.20511095]
[1754736212852,0.17008249,117590.0,117580.0,0.33496]
[1754736212853,0.17210249,117590.0,117580.0,0.33496]
[1754736213058,0.17507249,117590.0,117580.0,0.33496]
[1754736213264,0.19907272,117600.0,117580.0,0.51038695]
[1754736213472,0.17354072,117600.0,117580.0,1.01087141]
[1754736213674,0.17154072,117600.0,117590.0,0.17333249]
[1754736213853,0.17154072,117600.0,117590.0,0.59228484]
[1754736214000,0.17154072,117600.0,117590.0,0.00533]
[1754736214420,0.17054072,117600.0,117590.0,0.00533]
[1754736214629,0.17256072,117600.0,117590.0,0.00533]
[1754736215276,0.19809172,117600.0,117590.0,0.00533]
[1754736215477,0.20109172,117600.0,117590.0,0.00533]
[1754736215814,0.17008249,117590.0,117580.0,0.46512345]
[1754736215947,0.17210249,117590.0,117580.0,0.42503211]
[1754736216508,0.17210249,117590.0,117580.0,0.43004855]
[1754736216888,0.17210249,117590.0,117580.0,0.6022255]
[1754736217531,0.17008249,117590.0,117580.0,0.6022255]
[1754736217950,0.17008249,117590.0,117580.0,0.29219211]
[1754736218157,0.17210249,117590.0,117580.0,0.42178211]
[1754736218363,0.17310249,117590.0,117580.0,0.42178211]
[1754736218561,0.17310249,117590.0,117580.0,0.2]
[1754736218886,0.17607249,117590.0,117580.0,0.33492]
[1754736219092,0.17009695,117580.0,117570.0,0.17336142]
[1754736219303,0.17009695,117580.0,117570.0,0.31036142]
[1754736219504,0.17009695,117580.0,117570.0,0.00533]
[1754736219740,0.17011142,117570.0,117560.0,0.16098902]
[1754736219942,0.17011142,117570.0,117560.0,0.15248902]
[1754736219943,0.17510142,117570.0,117560.0,0.15248902]
[1754736220153,0.17014036,117550.0,117540.0,0.53091634]
[1754736220361,0.17014036,117550.0,117540.0,1.1716508]
[1754736220568,0.15993075,117550.0,117540.0,1.1716508]
[1754736221465,0.15993075,117550.0,117540.0,1.17179264]
[1754736221691,0.15993075,117550.0,117540.0,1.02130362]
[1754736222128,0.15993075,117550.0,117540.0,1.02330362]
[1754736225610,0.15993075,117550.0,117540.0,0.60643127]
[1754736225814,0.15993075,117550.0,117540.0,1.02330362]
[1754736226018,0.17861699,117570.0,117550.0,0.17014036]
[1754736226225,0.17011142,117570.0,117560.0,0.72724824]
[1754736226435,0.025537,117570.0,117560.0,0.81411035]
[1754736226641,0.17009695,117580.0,117570.0,0.17011142]
[1754736226848,0.19563195,117580.0,117570.0,0.58906377]
[1754736227050,0.19563195,117580.0,117570.0,0.42211235]
[1754736228433,0.19563195,117580.0,117570.0,0.00524]
[1754736228652,0.19861195,117580.0,117570.0,0.42211235]
[1754736229126,0.20061195,117580.0,117570.0,0.00524]
[1754736232102,0.20061195,117580.0,117570.0,0.14016]
[1754736234296,0.20061195,117580.0,117570.0,0.137]
[1754736234503,0.20061195,117580.0,117570.0,0.13492]
[1754736237168,0.17011142,117570.0,117560.0,0.91101446]
[1754736237372,0.17011142,117570.0,117560.0,0.63112211]
[1754736238883,0.17111142,117570.0,117560.0,0.63112211]
[1754736240349,0.17309142,117570.0,117560.0,0.20412]
[1754736240543,0.17623142,117570.0,117560.0,0.339]
[1754736241526,0.17309142,117570.0,117560.0,0.339]
[1754736241884,0.17111142,117570.0,117560.0,0.76113235]
[1754736242258,0.17111142,117570.0,117560.0,0.93125824]
[1754736243014,0.17111142,117570.0,117560.0,0.76113235]
[1754736243791,0.17309142,117570.0,117560.0,0.34426]
[1754736244659,0.17111142,117570.0,117560.0,0.34426]
[1754736245407,0.17309142,117570.0,117560.0,0.34426]
[1754736246834,0.17309142,117570.0,117560.0,0.20412]
[1754736247035,0.17309142,117570.0,117560.0,0.33896]
[1754736247036,0.17622142,117570.0,117560.0,0.33896]
[1754736250808,0.20176042,117570.0,117560.0,0.33896]
[1754736252282,0.19863042,117570.0,117560.0,0.33896]
[1754736257597,0.19863042,117570.0,117560.0,0.34404]
[1754736260615,0.17309142,117570.0,117560.0,0.34404]
[1754736260794,0.19863042,117570.0,117560.0,0.34404]
[1754736261002,0.17309142,117570.0,117560.0,0.34404]
[1754736261224,0.19862942,117570.0,117560.0,0.34404]
[1754736261677,0.17309142,117570.0,117560.0,0.34404]
[1754736262134,0.17111142,117570.0,117560.0,0.34404]
[1754736263245,0.17111142,117570.0,117560.0,0.76091235]
[1754736263995,0.17111142,117570.0,117560.0,0.34404]
[1754736268484,0.17111142,117570.0,117560.0,0.13992]
[1754736273507,0.17111142,117570.0,117560.0,0.31004589]
[1754736274423,0.17111142,117570.0,117560.0,0.72691824]
[1754736274642,0.17111142,117570.0,117560.0,0.31004589]
[1754736276644,0.001,117570.0,117560.0,0.72691824]
[1754736276866,0.001,117570.0,117560.0,0.75087824]
[1754736277096,0.17111142,117570.0,117560.0,0.33400589]
[1754736277768,0.17111142,117570.0,117560.0,0.13972]
[1754736278221,0.17306142,117570.0,117560.0,0.13972]
[1754736283386,0.17306142,117570.0,117560.0,0.00508]
[1754736283599,0.17306142,117570.0,117560.0,0.13964]
[1754736284291,0.17306142,117570.0,117540.0,0.58296088]
[1754736284466,0.17014036,117550.0,117540.0,0.20734184]
[1754736284687,0.17014036,117550.0,117540.0,0.92792903]
[1754736285213,0.17014036,117550.0,117540.0,0.93096903]
[1754736285559,0.17014036,117550.0,117540.0,0.93296903]
[1754736285944,0.17014036,117550.0,117540.0,0.93096903]
[1754736286190,0.17014036,117550.0,117540.0,0.93296903]
[1754736286416,0.17014036,117550.0,117540.0,0.93096903]
[1754736286632,0.17014036,117550.0,117540.0,0.93296903]
[1754736287546,0.17014036,117550.0,117540.0,0.93496903]
[1754736288966,0.20711799,117570.0,117540.0,0.93496903]
[1754736288967,0.20415799,117570.0,117550.0,0.17014036]
[1754736289169,0.20415799,117570.0,117560.0,0.1366]
[1754736289368,0.20415799,117570.0,117560.0,0.13967]
[1754736289566,0.20429799,117570.0,117560.0,0.13967]
[1754736289969,0.20415799,117570.0,117560.0,0.13967]
[1754736290176,0.17861699,117570.0,117560.0,0.55654235]
[1754736290342,0.17961699,117570.0,117560.0,0.55654235]
[1754736290970,0.17961699,117570.0,117560.0,0.13967]
[1754736291407,0.18168699,117570.0,117560.0,0.13452]
[1754736294446,0.17012589,117560.0,117550.0,0.00307]
[1754736294656,0.17012589,117560.0,117550.0,0.64332446]
[1754736294995,0.17012589,117560.0,117550.0,0.81346482]
[1754736296063,0.17012589,117560.0,117550.0,0.81446482]
[1754736296579,0.17012589,117560.0,117550.0,0.81546482]
[1754736297464,0.17012589,117560.0,117550.0,0.55846235]
[1754736297689,0.17219589,117560.0,117550.0,0.14159]
[1754736298241,0.17012589,117560.0,117550.0,0.14159]
[1754736298641,0.19773389,117560.0,117550.0,0.14159]
[1754736300036,0.19566389,117560.0,117550.0,0.14159]
[1754736301177,0.19773389,117560.0,117550.0,0.14159]
[1754736302083,0.19566389,117560.0,117550.0,0.14159]
[1754736302738,0.025538,117560.0,117550.0,0.72860271]
[1754736302951,0.025538,117560.0,117550.0,0.83914482]
[1754736303160,0.17860179,117580.0,117560.0,0.17012589]
[1754736303375,0.17860179,117580.0,117560.0,0.58699824]
[1754736303376,0.025536,117570.0,117560.0,0.58699824]
[1754736303585,0.025536,117570.0,117560.0,0.72343824]
[1754736303791,0.025536,117570.0,117560.0,1.03398035]
[1754736303971,0.17009695,117580.0,117570.0,0.17011142]
[1754736304211,0.19563095,117580.0,117570.0,0.59213377]
[1754736304411,0.025534,117580.0,117570.0,0.59213377]
[1754736304617,0.025534,117580.0,117570.0,0.72649377]
[1754736304823,0.17858661,117590.0,117580.0,0.17009695]
[1754736304946,0.20411961,117590.0,117580.0,0.5921193]
[1754736305402,0.20411961,117590.0,117580.0,0.17524695]
[1754736305595,0.20411961,117590.0,117580.0,0.00515]
[1754736306008,0.20459231,117590.0,117580.0,0.00515]
[1754736306520,0.20966231,117590.0,117580.0,0.00515]
[1754736308535,0.0290057,117590.0,117580.0,0.5921193]
[1754736308781,0.19908819,117590.0,117580.0,0.5921193]
[1754736308979,0.19608819,117590.0,117580.0,0.5921193]
[1754736309174,0.0024727,117590.0,117580.0,0.70266141]
[1754736309385,0.0044727,117590.0,117580.0,0.90895143]
[1754736309591,0.0024727,117590.0,117580.0,1.04323143]
[1754736309799,0.0044727,117590.0,117580.0,1.38323143]
[1754736309958,0.0024727,117590.0,117580.0,1.38323143]
[1754736310158,0.0004727,117590.0,117580.0,1.38323143]
[1754736310753,0.0004727,117590.0,117580.0,1.38423143]
[1754736311187,0.0004727,117590.0,117580.0,1.38523143]
[1754736311818,0.0004727,117590.0,117580.0,1.4104448]
[1754736313092,0.0004727,117590.0,117580.0,1.57679992]
[1754736313511,0.0004727,117590.0,117580.0,1.58529992]
[1754736314342,0.0004727,117590.0,117580.0,1.58429992]
[1754736315361,0.0004727,117590.0,117580.0,1.58329992]
[1754736315565,0.0004727,117590.0,117580.0,1.58429992]
[1754736315926,0.0004727,117590.0,117580.0,1.57579992]
[1754736316449,0.0004727,117590.0,117580.0,1.57779992]
[1754736316962,4.644e-05,117590.0,117580.0,1.57579992]
[1754736317168,4.644e-05,117590.0,117580.0,1.57679992]
[1754736318930,4.644e-05,117590.0,117580.0,1.99367227]
[1754736319160,4.644e-05,117590.0,117580.0,2.01067227]
[1754736320046,4.644e-05,117590.0,117580.0,1.59379992]
[1754736321023,4.644e-05,117590.0,117580.0,1.61932392]
[1754736324436,4.644e-05,117590.0,117580.0,2.03619627]
[1754736324639,4.644e-05,117590.0,117580.0,1.61932392]
[1754736328008,4.644e-05,117590.0,117580.0,1.88512392]
[1754736328474,4.59e-06,117590.0,117580.0,1.88512392]
[1754736328904,4.59e-06,117590.0,117580.0,2.30199627]
[1754736330740,4.59e-06,117590.0,117580.0,2.30099627]
[1754736331246,4.59e-06,117590.0,117580.0,2.30399627]
[1754736331457,4.59e-06,117590.0,117580.0,2.03819627]
[1754736331679,4.59e-06,117590.0,117580.0,1.62132392]